[Event "Titled Tuesday Blitz January 31 Early 2023"]
[White "Baskakov, Egor"]
[Black "Martinez Alcantara, Jose Eduardo"]
[WhiteFideId "24197866"]
[BlackFideId "3805662"]
[WhiteElo "2215"]
[BlackElo "2619"]
[Result "1/2-1/2"]
[Round "06"]
[TimeControl "180+2"]
[Date "2023.01.31"]
[WhiteClock "0:00:21"]
[BlackClock "0:00:47"]

1. e4 {[%clk 0:03:00]}  Nc6 {[%clk 0:03:00]} 2. Nc3 {[%clk 0:02:58]}  d6 {[%clk 0:02:59]} 3. g3 {[%clk 0:02:58]}  g6 {[%clk 0:03:00]} 4. Bg2 {[%clk 0:02:58]}  Bg7 {[%clk 0:03:00]} 5. Nge2 {[%clk 0:02:58]}  e5 {[%clk 0:02:58]} 6. d3 {[%clk 0:02:57]}  Nge7 {[%clk 0:02:56]} 7. h3 {[%clk 0:02:57]}  O-O {[%clk 0:02:53]} 8. O-O {[%clk 0:02:57]}  f5 {[%clk 0:02:51]} 9. f4 {[%clk 0:02:57]}  Be6 {[%clk 0:02:51]} 10. Nd5 {[%clk 0:02:56]}  Qd7 {[%clk 0:02:48]} 11. Kh2 {[%clk 0:02:56]}  Bf7 {[%clk 0:02:37]} 12. c3 {[%clk 0:02:55]}  Nxd5 {[%clk 0:02:36]} 13. exd5 {[%clk 0:02:56]}  Ne7 {[%clk 0:02:37]} 14. c4 {[%clk 0:02:53]}  c6 {[%clk 0:02:34]} 15. dxc6 {[%clk 0:02:54]}  bxc6 {[%clk 0:02:29]} 16. Rb1 {[%clk 0:02:48]}  a5 {[%clk 0:02:10]} 17. b3 {[%clk 0:02:47]}  Rfe8 {[%clk 0:02:02]} 18. Be3 {[%clk 0:02:44]}  Qc7 {[%clk 0:02:00]} 19. Qd2 {[%clk 0:02:43]}  Rad8 {[%clk 0:01:56]} 20. Rfe1 {[%clk 0:02:34]}  d5 {[%clk 0:01:56]} 21. fxe5 {[%clk 0:02:30]}  dxc4 {[%clk 0:01:56]} 22. bxc4 {[%clk 0:02:30]}  Qxe5 {[%clk 0:01:44]} 23. Bb6 {[%clk 0:02:04]}  Rd7 {[%clk 0:01:40]} 24. Nf4 {[%clk 0:01:58]}  Qc3 {[%clk 0:01:35]} 25. Qf2 {[%clk 0:01:47]}  Bd4 {[%clk 0:01:23]} 26. Bxd4 {[%clk 0:01:43]}  Qxd4 {[%clk 0:01:24]} 27. Qd2 {[%clk 0:01:40]}  a4 {[%clk 0:01:12]} 28. Ne6 {[%clk 0:01:22]}  Qa7 {[%clk 0:00:36]} 29. Qc3 {[%clk 0:01:15]}  Bxe6 {[%clk 0:00:36]} 30. Rxe6 {[%clk 0:01:16]}  Red8 {[%clk 0:00:22]} 31. Rbe1 {[%clk 0:01:07]}  Qc7 {[%clk 0:00:22]} 32. Qf6 {[%clk 0:01:02]}  Rf8 {[%clk 0:00:22]} 33. Qh4 {[%clk 0:00:42]}  Rf7 {[%clk 0:00:21]} 34. d4 {[%clk 0:00:38]}  f4 {[%clk 0:00:21]} 35. gxf4 {[%clk 0:00:38]}  Rxf4 {[%clk 0:00:22]} 36. Qg3 {[%clk 0:00:39]}  Rf7 {[%clk 0:00:20]} 37. Qxc7 {[%clk 0:00:38]}  Rxc7 {[%clk 0:00:21]} 38. d5 {[%clk 0:00:38]}  cxd5 {[%clk 0:00:21]} 39. cxd5 {[%clk 0:00:39]}  Rd7 {[%clk 0:00:20]} 40. d6 {[%clk 0:00:36]}  Nf5 {[%clk 0:00:20]} 41. Rd1 {[%clk 0:00:31]}  Rd8 {[%clk 0:00:14]} 42. Bc6 {[%clk 0:00:28]}  Ng7 {[%clk 0:00:14]} 43. Re2 {[%clk 0:00:24]}  Rf6 {[%clk 0:00:14]} 44. Bxa4 {[%clk 0:00:18]}  Rfxd6 {[%clk 0:00:13]} 45. Bb3+ {[%clk 0:00:18]}  Kh8 {[%clk 0:00:14]} 46. Rxd6 {[%clk 0:00:18]}  Rxd6 {[%clk 0:00:14]} 47. a4 {[%clk 0:00:16]}  Ra6 {[%clk 0:00:14]} 48. Re5 {[%clk 0:00:14]}  Nf5 {[%clk 0:00:13]} 49. a5 {[%clk 0:00:15]}  Rd6 {[%clk 0:00:14]} 50. Bc4 {[%clk 0:00:13]}  Rd2+ {[%clk 0:00:14]} 51. Kg1 {[%clk 0:00:13]}  Nd4 {[%clk 0:00:14]} 52. Bd5 {[%clk 0:00:08]}  Rd1+ {[%clk 0:00:13]} 53. Kg2 {[%clk 0:00:08]}  Ra1 {[%clk 0:00:14]} 54. Be4 {[%clk 0:00:04]}  Nb3 {[%clk 0:00:13]} 55. Kg3 {[%clk 0:00:02]}  Nxa5 {[%clk 0:00:13]} 56. Bd5 {[%clk 0:00:03]}  Rc1 {[%clk 0:00:12]} 57. Kf4 {[%clk 0:00:03]}  Rc7 {[%clk 0:00:12]} 58. Kg5 {[%clk 0:00:03]}  Kg7 {[%clk 0:00:13]} 59. h4 {[%clk 0:00:03]}  h6+ {[%clk 0:00:13]} 60. Kf4 {[%clk 0:00:03]}  Nc4 {[%clk 0:00:10]} 61. Bxc4 {[%clk 0:00:03]}  Rxc4+ {[%clk 0:00:11]} 62. Kg3 {[%clk 0:00:04]}  Kf6 {[%clk 0:00:12]} 63. Rb5 {[%clk 0:00:05]}  Rc6 {[%clk 0:00:12]} 64. Kg4 {[%clk 0:00:05]}  Rc4+ {[%clk 0:00:12]} 65. Kg3 {[%clk 0:00:05]}  h5 {[%clk 0:00:13]} 66. Ra5 {[%clk 0:00:05]}  Rg4+ {[%clk 0:00:13]} 67. Kh3 {[%clk 0:00:06]}  Re4 {[%clk 0:00:14]} 68. Rb5 {[%clk 0:00:06]}  Re5 {[%clk 0:00:15]} 69. Rb6+ {[%clk 0:00:06]}  Kf5 {[%clk 0:00:15]} 70. Rb8 {[%clk 0:00:05]}  Re3+ {[%clk 0:00:15]} 71. Kg2 {[%clk 0:00:05]}  Re4 {[%clk 0:00:16]} 72. Kg3 {[%clk 0:00:05]}  Re3+ {[%clk 0:00:17]} 73. Kg2 {[%clk 0:00:05]}  Kf4 {[%clk 0:00:17]} 74. Rb4+ {[%clk 0:00:05]}  Re4 {[%clk 0:00:18]} 75. Rb6 {[%clk 0:00:06]}  Kf5 {[%clk 0:00:18]} 76. Kg3 {[%clk 0:00:06]}  Rc4 {[%clk 0:00:18]} 77. Kh3 {[%clk 0:00:07]}  Rc3+ {[%clk 0:00:18]} 78. Kg2 {[%clk 0:00:07]}  Rd3 {[%clk 0:00:19]} 79. Rc6 {[%clk 0:00:07]}  Re3 {[%clk 0:00:18]} 80. Rb6 {[%clk 0:00:07]}  Re6 {[%clk 0:00:19]} 81. Rb5+ {[%clk 0:00:07]}  Kg4 {[%clk 0:00:19]} 82. Rb4+ {[%clk 0:00:08]}  Kf5 {[%clk 0:00:20]} 83. Rb5+ {[%clk 0:00:08]}  Kf6 {[%clk 0:00:20]} 84. Kg3 {[%clk 0:00:08]}  Kg7 {[%clk 0:00:21]} 85. Rb7+ {[%clk 0:00:08]}  Kh6 {[%clk 0:00:21]} 86. Rb3 {[%clk 0:00:08]}  Re4 {[%clk 0:00:22]} 87. Kh3 {[%clk 0:00:08]}  Rg4 {[%clk 0:00:22]} 88. Rc3 {[%clk 0:00:09]}  Ra4 {[%clk 0:00:23]} 89. Rd3 {[%clk 0:00:09]}  Ra1 {[%clk 0:00:23]} 90. Rb3 {[%clk 0:00:09]}  Rc1 {[%clk 0:00:24]} 91. Kg3 {[%clk 0:00:09]}  Rh1 {[%clk 0:00:24]} 92. Ra3 {[%clk 0:00:09]}  Rg1+ {[%clk 0:00:25]} 93. Kh3 {[%clk 0:00:10]}  Rc1 {[%clk 0:00:26]} 94. Rb3 {[%clk 0:00:10]}  Rc6 {[%clk 0:00:25]} 95. Ra3 {[%clk 0:00:10]}  Kg7 {[%clk 0:00:26]} 96. Rb3 {[%clk 0:00:10]}  Kf6 {[%clk 0:00:26]} 97. Rf3+ {[%clk 0:00:11]}  Ke5 {[%clk 0:00:27]} 98. Rf8 {[%clk 0:00:11]}  Rc3+ {[%clk 0:00:26]} 99. Kg2 {[%clk 0:00:11]}  Ke4 {[%clk 0:00:27]} 100. Rf6 {[%clk 0:00:10]}  Rc2+ {[%clk 0:00:24]} 101. Kg3 {[%clk 0:00:10]}  Rc3+ {[%clk 0:00:25]} 102. Kg2 {[%clk 0:00:10]}  Rc2+ {[%clk 0:00:20]} 103. Kg3 {[%clk 0:00:11]}  Rc1 {[%clk 0:00:21]} 104. Kg2 {[%clk 0:00:11]}  Ke5 {[%clk 0:00:22]} 105. Rxg6 {[%clk 0:00:11]}  Kf4 {[%clk 0:00:22]} 106. Rg5 {[%clk 0:00:11]}  Rc2+ {[%clk 0:00:23]} 107. Kf1 {[%clk 0:00:11]}  Kf3 {[%clk 0:00:23]} 108. Rf5+ {[%clk 0:00:11]}  Kg4 {[%clk 0:00:24]} 109. Rg5+ {[%clk 0:00:09]}  Kf3 {[%clk 0:00:23]} 110. Ke1 {[%clk 0:00:06]}  Ke3 {[%clk 0:00:20]} 111. Kd1 {[%clk 0:00:06]}  Rd2+ {[%clk 0:00:21]} 112. Kc1 {[%clk 0:00:06]}  Rh2 {[%clk 0:00:22]} 113. Rxh5 {[%clk 0:00:06]}  Kd3 {[%clk 0:00:23]} 114. Rh8 {[%clk 0:00:06]}  Kc3 {[%clk 0:00:23]} 115. Kb1 {[%clk 0:00:06]}  Kb3 {[%clk 0:00:23]} 116. Kc1 {[%clk 0:00:07]}  Kc3 {[%clk 0:00:24]} 117. Kd1 {[%clk 0:00:07]}  Kd4 {[%clk 0:00:25]} 118. Ke1 {[%clk 0:00:07]}  Ke5 {[%clk 0:00:25]} 119. Kf1 {[%clk 0:00:07]}  Kf6 {[%clk 0:00:26]} 120. Kg1 {[%clk 0:00:07]}  Ra2 {[%clk 0:00:26]} 121. Rg8 {[%clk 0:00:07]}  Kf7 {[%clk 0:00:25]} 122. Rg4 {[%clk 0:00:07]}  Ra8 {[%clk 0:00:26]} 123. Rb4 {[%clk 0:00:07]}  Kg6 {[%clk 0:00:25]} 124. Kh2 {[%clk 0:00:08]}  Kh5 {[%clk 0:00:26]} 125. Kh3 {[%clk 0:00:07]}  Ra3+ {[%clk 0:00:27]} 126. Kg2 {[%clk 0:00:06]}  Re3 {[%clk 0:00:28]} 127. Kf2 {[%clk 0:00:06]}  Ra3 {[%clk 0:00:28]} 128. Rb5+ {[%clk 0:00:07]}  Kxh4 {[%clk 0:00:27]} 129. Rb4+ {[%clk 0:00:07]}  Kg5 {[%clk 0:00:28]} 130. Rb5+ {[%clk 0:00:08]}  Kf4 {[%clk 0:00:28]} 131. Rb4+ {[%clk 0:00:08]}  Ke5 {[%clk 0:00:29]} 132. Rb5+ {[%clk 0:00:09]}  Kd4 {[%clk 0:00:29]} 133. Rb4+ {[%clk 0:00:09]}  Kc3 {[%clk 0:00:30]} 134. Rb8 {[%clk 0:00:09]}  Ra2+ {[%clk 0:00:31]} 135. Ke3 {[%clk 0:00:10]}  Ra7 {[%clk 0:00:32]} 136. Rc8+ {[%clk 0:00:10]}  Kb4 {[%clk 0:00:32]} 137. Rb8+ {[%clk 0:00:10]}  Kc5 {[%clk 0:00:32]} 138. Rc8+ {[%clk 0:00:11]}  Kd6 {[%clk 0:00:33]} 139. Rh8 {[%clk 0:00:11]}  Ra3+ {[%clk 0:00:33]} 140. Kd4 {[%clk 0:00:12]}  Ra4+ {[%clk 0:00:34]} 141. Kd3 {[%clk 0:00:12]}  Ra1 {[%clk 0:00:35]} 142. Kc4 {[%clk 0:00:12]}  Ke5 {[%clk 0:00:35]} 143. Re8+ {[%clk 0:00:12]}  Kd6 {[%clk 0:00:35]} 144. Kc3 {[%clk 0:00:12]}  Kd7 {[%clk 0:00:34]} 145. Rh8 {[%clk 0:00:12]}  Rc1+ {[%clk 0:00:35]} 146. Kd2 {[%clk 0:00:12]}  Rg1 {[%clk 0:00:36]} 147. Rh7+ {[%clk 0:00:12]}  Ke6 {[%clk 0:00:36]} 148. Rh6+ {[%clk 0:00:13]}  Kf5 {[%clk 0:00:36]} 149. Ra6 {[%clk 0:00:13]}  Rg3 {[%clk 0:00:37]} 150. Ke2 {[%clk 0:00:13]}  Rg2+ {[%clk 0:00:37]} 151. Kf3 {[%clk 0:00:13]}  Rg8 {[%clk 0:00:38]} 152. Ra5+ {[%clk 0:00:14]}  Ke6 {[%clk 0:00:39]} 153. Ke4 {[%clk 0:00:14]}  Kd6 {[%clk 0:00:39]} 154. Ra6+ {[%clk 0:00:14]}  Kc5 {[%clk 0:00:40]} 155. Rh6 {[%clk 0:00:15]}  Rg4+ {[%clk 0:00:39]} 156. Kd3 {[%clk 0:00:15]}  Rg1 {[%clk 0:00:40]} 157. Rh5+ {[%clk 0:00:16]}  Kd6 {[%clk 0:00:40]} 158. Rh6+ {[%clk 0:00:16]}  Ke5 {[%clk 0:00:39]} 159. Rh5+ {[%clk 0:00:16]}  Kf4 {[%clk 0:00:40]} 160. Ra5 {[%clk 0:00:17]}  Rg3+ {[%clk 0:00:40]} 161. Ke2 {[%clk 0:00:17]}  Rg8 {[%clk 0:00:41]} 162. Ra4+ {[%clk 0:00:16]}  Ke5 {[%clk 0:00:41]} 163. Ra5+ {[%clk 0:00:17]}  Kd4 {[%clk 0:00:42]} 164. Ra4+ {[%clk 0:00:18]}  Kc3 {[%clk 0:00:42]} 165. Rh4 {[%clk 0:00:18]}  Kb3 {[%clk 0:00:42]} 166. Ke3 {[%clk 0:00:18]}  Re8+ {[%clk 0:00:43]} 167. Re4 {[%clk 0:00:18]}  Rb8 {[%clk 0:00:44]} 168. Kf4 {[%clk 0:00:19]}  Kc3 {[%clk 0:00:44]} 169. Re3+ {[%clk 0:00:19]}  Kd4 {[%clk 0:00:45]} 170. Re4+ {[%clk 0:00:20]}  Kd3 {[%clk 0:00:46]} 171. Re3+ {[%clk 0:00:20]}  Kd2 {[%clk 0:00:46]} 172. Re4 {[%clk 0:00:20]}  Rf8+ {[%clk 0:00:46]} 173. Kg3 {[%clk 0:00:21]}  Kd3 {[%clk 0:00:47]} 174. Rf4 {[%clk 0:00:21]}  Rxf4 {[%clk 0:00:47]} 175. Kxf4 {[%clk 0:00:21]} 1/2-1/2


[Site "https://www.chess.com"]

[Event "Titled Tuesday Blitz January 31 Early 2023"]
[White "Kravtsiv, Martyn"]
[Black "Jobava, Baadur"]
[WhiteFideId "14113147"]
[BlackFideId "13601520"]
[WhiteElo "2598"]
[BlackElo "2578"]
[Result "0-1"]
[Round "06"]
[TimeControl "180+2"]
[Date "2023.01.31"]
[WhiteClock "0:00:01"]
[BlackClock "0:00:45"]

1. e4 {[%clk 0:03:00]}  e5 {[%clk 0:02:57]} 2. Nf3 {[%clk 0:03:01]}  Nf6 {[%clk 0:02:58]} 3. Nc3 {[%clk 0:03:01]}  d6 {[%clk 0:02:56]} 4. d4 {[%clk 0:03:00]}  Nbd7 {[%clk 0:02:57]} 5. Bc4 {[%clk 0:02:58]}  Be7 {[%clk 0:02:57]} 6. Bxf7+ {[%clk 0:02:41]}  Kxf7 {[%clk 0:02:57]} 7. Ng5+ {[%clk 0:02:41]}  Kg8 {[%clk 0:02:57]} 8. Ne6 {[%clk 0:02:42]}  Qe8 {[%clk 0:02:58]} 9. Nxc7 {[%clk 0:02:42]}  Qg6 {[%clk 0:02:59]} 10. Nxa8 {[%clk 0:02:34]}  Qxg2 {[%clk 0:02:59]} 11. Rf1 {[%clk 0:02:29]}  exd4 {[%clk 0:02:59]} 12. Qxd4 {[%clk 0:02:24]}  Ne5 {[%clk 0:02:59]} 13. f4 {[%clk 0:02:15]}  Nfg4 {[%clk 0:02:34]} 14. Qd5+ {[%clk 0:01:43]}  Nf7 {[%clk 0:02:33]} 15. Qc4 {[%clk 0:01:43]}  Bh4+ {[%clk 0:01:58]} 16. Kd1 {[%clk 0:01:42]}  Be6 {[%clk 0:01:59]} 17. Qe2 {[%clk 0:01:41]}  Nf2+ {[%clk 0:01:59]} 18. Rxf2 {[%clk 0:01:39]}  Bxf2 {[%clk 0:02:00]} 19. f5 {[%clk 0:01:32]}  Qg1+ {[%clk 0:01:14]} 20. Kd2 {[%clk 0:01:31]}  Qg5+ {[%clk 0:01:14]} 21. Kd1 {[%clk 0:01:28]}  Qg1+ {[%clk 0:01:14]} 22. Kd2 {[%clk 0:01:28]}  Ne5 {[%clk 0:01:12]} 23. fxe6 {[%clk 0:00:37]}  Be1+ {[%clk 0:01:11]} 24. Qxe1 {[%clk 0:00:36]}  Nf3+ {[%clk 0:01:12]} 25. Ke2 {[%clk 0:00:36]}  Nxe1 {[%clk 0:01:12]} 26. Nc7 {[%clk 0:00:18]}  Nxc2 {[%clk 0:01:08]} 27. N3d5 {[%clk 0:00:14]}  Qg4+ {[%clk 0:00:58]} 28. Kd3 {[%clk 0:00:13]}  Nxa1 {[%clk 0:00:58]} 29. Bf4 {[%clk 0:00:08]}  Qf3+ {[%clk 0:00:47]} 30. Kd2 {[%clk 0:00:03]}  Qf2+ {[%clk 0:00:48]} 31. Kd3 {[%clk 0:00:02]}  Qf3+ {[%clk 0:00:47]} 32. Kd2 {[%clk 0:00:02]}  Qxe4 {[%clk 0:00:45]} 33. Bxd6 {[%clk 0:00:02]}  h6 {[%clk 0:00:45]} 34. e7 {[%clk 0:00:01]}  Kh7 {[%clk 0:00:45]} 0-1


[Site "https://www.chess.com"]

[Event "Titled Tuesday Blitz January 31 Early 2023"]
[White "Le, Tuan Minh"]
[Black "Gokerkan, Cem Kaan"]
[WhiteFideId "12401153"]
[BlackFideId "6336760"]
[WhiteElo "2542"]
[BlackElo "2500"]
[Result "1-0"]
[Round "06"]
[TimeControl "180+2"]
[Date "2023.01.31"]
[WhiteClock "0:00:19"]
[BlackClock "0:00:30"]

1. d4 {[%clk 0:02:55]}  Nf6 {[%clk 0:03:00]} 2. Nf3 {[%clk 0:02:53]}  d5 {[%clk 0:03:01]} 3. Bf4 {[%clk 0:02:53]}  c5 {[%clk 0:03:00]} 4. c3 {[%clk 0:02:53]}  Nc6 {[%clk 0:03:00]} 5. e3 {[%clk 0:02:53]}  Nh5 {[%clk 0:03:00]} 6. Be5 {[%clk 0:02:52]}  f6 {[%clk 0:02:59]} 7. Bg3 {[%clk 0:02:53]}  cxd4 {[%clk 0:02:58]} 8. cxd4 {[%clk 0:02:53]}  e6 {[%clk 0:02:56]} 9. Nc3 {[%clk 0:02:53]}  g6 {[%clk 0:02:49]} 10. Bd3 {[%clk 0:02:43]}  Kf7 {[%clk 0:02:49]} 11. Bh4 {[%clk 0:02:40]}  Bd7 {[%clk 0:02:35]} 12. Rc1 {[%clk 0:02:34]}  Qb6 {[%clk 0:02:30]} 13. Qe2 {[%clk 0:02:30]}  Bb4 {[%clk 0:02:23]} 14. O-O {[%clk 0:02:29]}  Bxc3 {[%clk 0:02:23]} 15. Rxc3 {[%clk 0:02:29]}  Rac8 {[%clk 0:02:22]} 16. a3 {[%clk 0:02:22]}  Ne7 {[%clk 0:02:18]} 17. Rxc8 {[%clk 0:02:21]}  Rxc8 {[%clk 0:02:18]} 18. g4 {[%clk 0:02:22]}  Ng7 {[%clk 0:02:15]} 19. g5 {[%clk 0:02:23]}  Ngf5 {[%clk 0:02:00]} 20. gxf6 {[%clk 0:02:22]}  Nxh4 {[%clk 0:02:00]} 21. Ne5+ {[%clk 0:02:22]}  Kg8 {[%clk 0:01:54]} 22. fxe7 {[%clk 0:01:58]}  Qd6 {[%clk 0:01:53]} 23. Qg4 {[%clk 0:01:43]}  Nf5 {[%clk 0:01:47]} 24. h4 {[%clk 0:01:08]}  Qxe7 {[%clk 0:01:37]} 25. h5 {[%clk 0:01:09]}  Be8 {[%clk 0:01:33]} 26. hxg6 {[%clk 0:01:09]}  hxg6 {[%clk 0:01:28]} 27. Kg2 {[%clk 0:01:06]}  Qf6 {[%clk 0:01:22]} 28. Rh1 {[%clk 0:01:03]}  Rc7 {[%clk 0:01:01]} 29. Qf4 {[%clk 0:00:56]}  g5 {[%clk 0:00:59]} 30. Qg4 {[%clk 0:00:19]}  Nh4+ {[%clk 0:00:30]} 31. Rxh4 {[%clk 0:00:19]} 1-0


[Site "https://www.chess.com"]

[Event "Titled Tuesday Blitz January 31 Early 2023"]
[White "Kazakouski, Valery"]
[Black "Makhnev, Denis"]
[WhiteFideId "13507443"]
[BlackFideId "13707647"]
[WhiteElo "2539"]
[BlackElo "2483"]
[Result "1-0"]
[Round "06"]
[TimeControl "180+2"]
[Date "2023.01.31"]
[WhiteClock "0:00:09"]
[BlackClock "0:00:05"]

1. e4 {[%clk 0:02:44]}  e5 {[%clk 0:02:59]} 2. Nf3 {[%clk 0:02:44]}  Nc6 {[%clk 0:02:59]} 3. Bc4 {[%clk 0:02:44]}  Bc5 {[%clk 0:02:59]} 4. d3 {[%clk 0:02:44]}  Nf6 {[%clk 0:02:59]} 5. c3 {[%clk 0:02:44]}  a5 {[%clk 0:03:00]} 6. a4 {[%clk 0:02:43]}  d6 {[%clk 0:02:58]} 7. O-O {[%clk 0:02:41]}  O-O {[%clk 0:02:55]} 8. Bg5 {[%clk 0:02:41]}  h6 {[%clk 0:02:55]} 9. Bh4 {[%clk 0:02:41]}  Re8 {[%clk 0:02:51]} 10. Nbd2 {[%clk 0:02:39]}  Be6 {[%clk 0:02:51]} 11. Qb3 {[%clk 0:02:38]}  Rb8 {[%clk 0:02:43]} 12. Rfe1 {[%clk 0:02:38]}  Ba7 {[%clk 0:02:42]} 13. Nf1 {[%clk 0:02:36]}  Bxc4 {[%clk 0:02:06]} 14. Qxc4 {[%clk 0:02:35]}  Re6 {[%clk 0:02:06]} 15. Rad1 {[%clk 0:02:28]}  Qd7 {[%clk 0:02:05]} 16. Qb5 {[%clk 0:02:21]}  Ng4 {[%clk 0:01:12]} 17. d4 {[%clk 0:02:13]}  exd4 {[%clk 0:01:05]} 18. cxd4 {[%clk 0:02:14]}  Rg6 {[%clk 0:01:05]} 19. Bg3 {[%clk 0:02:06]}  Bb6 {[%clk 0:00:59]} 20. N1d2 {[%clk 0:01:59]}  Rd8 {[%clk 0:00:51]} 21. Nc4 {[%clk 0:01:59]}  Ba7 {[%clk 0:00:46]} 22. d5 {[%clk 0:01:48]}  Nb4 {[%clk 0:00:36]} 23. Qxd7 {[%clk 0:01:31]}  Rxd7 {[%clk 0:00:36]} 24. Nxa5 {[%clk 0:01:32]}  Bb6 {[%clk 0:00:27]} 25. Nxb7 {[%clk 0:01:06]}  c5 {[%clk 0:00:27]} 26. dxc6 {[%clk 0:01:06]}  Nxc6 {[%clk 0:00:28]} 27. Nxd6 {[%clk 0:01:02]}  Nxf2 {[%clk 0:00:27]} 28. Bxf2 {[%clk 0:01:01]}  Bxf2+ {[%clk 0:00:27]} 29. Kxf2 {[%clk 0:01:02]}  Rgxd6 {[%clk 0:00:28]} 30. Rxd6 {[%clk 0:01:00]}  Rxd6 {[%clk 0:00:29]} 31. Ra1 {[%clk 0:00:56]}  Nb4 {[%clk 0:00:29]} 32. a5 {[%clk 0:00:42]}  Ra6 {[%clk 0:00:30]} 33. Ne5 {[%clk 0:00:33]}  Rf6+ {[%clk 0:00:26]} 34. Ke2 {[%clk 0:00:31]}  Re6 {[%clk 0:00:26]} 35. Ra4 {[%clk 0:00:31]}  Rxe5 {[%clk 0:00:25]} 36. Rxb4 {[%clk 0:00:31]}  Rxa5 {[%clk 0:00:26]} 37. Rd4 {[%clk 0:00:28]}  Rb5 {[%clk 0:00:23]} 38. b4 {[%clk 0:00:26]}  f5 {[%clk 0:00:21]} 39. exf5 {[%clk 0:00:25]}  Rxf5 {[%clk 0:00:22]} 40. Rd2 {[%clk 0:00:25]}  Rb5 {[%clk 0:00:21]} 41. Rb2 {[%clk 0:00:24]}  Kf7 {[%clk 0:00:22]} 42. Kd3 {[%clk 0:00:25]}  Ke7 {[%clk 0:00:22]} 43. Kc4 {[%clk 0:00:26]}  Rg5 {[%clk 0:00:21]} 44. b5 {[%clk 0:00:26]}  Kd7 {[%clk 0:00:22]} 45. g3 {[%clk 0:00:22]}  Kc7 {[%clk 0:00:21]} 46. Re2 {[%clk 0:00:22]}  Rg4+ {[%clk 0:00:20]} 47. Kc5 {[%clk 0:00:22]}  Rg5+ {[%clk 0:00:20]} 48. Kb4 {[%clk 0:00:22]}  h5 {[%clk 0:00:18]} 49. Ka5 {[%clk 0:00:22]}  Rg4 {[%clk 0:00:13]} 50. Re7+ {[%clk 0:00:21]}  Kd6 {[%clk 0:00:13]} 51. Re8 {[%clk 0:00:18]}  Rc4 {[%clk 0:00:10]} 52. Kb6 {[%clk 0:00:15]}  Rc2 {[%clk 0:00:10]} 53. Rg8 {[%clk 0:00:15]}  Rxh2 {[%clk 0:00:06]} 54. Rxg7 {[%clk 0:00:16]}  Ke5 {[%clk 0:00:05]} 55. Ka6 {[%clk 0:00:12]}  Ra2+ {[%clk 0:00:03]} 56. Kb7 {[%clk 0:00:12]}  Kf5 {[%clk 0:00:04]} 57. b6 {[%clk 0:00:11]}  Rg2 {[%clk 0:00:04]} 58. Rg8 {[%clk 0:00:07]}  h4 {[%clk 0:00:03]} 59. Rf8+ {[%clk 0:00:07]}  Ke6 {[%clk 0:00:04]} 60. gxh4 {[%clk 0:00:08]}  Rg7+ {[%clk 0:00:04]} 61. Ka6 {[%clk 0:00:09]}  Rh7 {[%clk 0:00:05]} 62. b7 {[%clk 0:00:09]} 1-0


[Site "https://www.chess.com"]